[Event "Late-Titled-Tuesday-Blitz-April-02-2024"]
[Site "Chess.com"]
[Date "2024.04.02"]
[Round "10"]
[White "shimastream"]
[Black "LiemLe"]
[Result "1-0"]
[WhiteElo "3042"]
[BlackElo "3030"]
[TimeControl "180+1"]
[EndTime "15:53:29 PDT"]
[Termination "shimastream won by resignation"]

1. e4 {[%clk 0:03:00.9]} 1... c5 {[%clk 0:02:59.8]} 2. d4 {[%clk 0:03:00.1]}
2... cxd4 {[%clk 0:02:59.3]} 3. Qxd4 {[%clk 0:03:01]} 3... Nc6 {[%clk
0:02:58.7]} 4. Qd3 {[%clk 0:03:01.4]} 4... g6 {[%clk 0:02:47.4]} 5. Nc3 {[%clk
0:03:00.7]} 5... Bg7 {[%clk 0:02:47.4]} 6. Nf3 {[%clk 0:03:01.4]} 6... Nf6
{[%clk 0:02:41.8]} 7. Be2 {[%clk 0:03:00.9]} 7... O-O {[%clk 0:02:40.5]} 8. O-O
{[%clk 0:03:01.2]} 8... d6 {[%clk 0:02:40.6]} 9. Nd5 {[%clk 0:03:00.8]} 9... Nd7
{[%clk 0:02:29.3]} 10. c3 {[%clk 0:03:00.5]} 10... Nc5 {[%clk 0:02:11]} 11. Qc2
{[%clk 0:03:00.7]} 11... e6 {[%clk 0:02:03.9]} 12. Ne3 {[%clk 0:03:00.7]} 12...
f5 {[%clk 0:02:04.3]} 13. exf5 {[%clk 0:03:01.6]} 13... gxf5 {[%clk 0:02:05.2]}
14. Rd1 {[%clk 0:03:01.6]} 14... Qe7 {[%clk 0:01:56.5]} 15. Nf1 {[%clk
0:02:53.3]} 15... f4 {[%clk 0:01:33]} 16. b4 {[%clk 0:02:51.8]} 16... Nd7 {[%clk
0:01:33.2]} 17. Bb2 {[%clk 0:02:49.7]} 17... Nf6 {[%clk 0:01:25.6]} 18. b5
{[%clk 0:02:46.3]} 18... Nd8 {[%clk 0:01:18.7]} 19. c4 {[%clk 0:02:45.6]} 19...
b6 {[%clk 0:01:17.4]} 20. Ba3 {[%clk 0:02:30.1]} 20... Nf7 {[%clk 0:01:10.1]}
21. Nd4 {[%clk 0:02:30.4]} 21... Bb7 {[%clk 0:01:09.6]} 22. Bf3 {[%clk
0:02:24.8]} 22... Bxf3 {[%clk 0:01:03.3]} 23. gxf3 {[%clk 0:02:18.1]} 23... Nd7
{[%clk 0:00:48.7]} 24. Kh1 {[%clk 0:02:16.4]} 24... Nde5 {[%clk 0:00:47.8]} 25.
Nd2 {[%clk 0:02:10.4]} 25... Rac8 {[%clk 0:00:45.7]} 26. Rg1 {[%clk 0:02:06.9]}
26... Kh8 {[%clk 0:00:43.8]} 27. Rae1 {[%clk 0:01:59.3]} 27... Rfe8 {[%clk
0:00:35.7]} 28. Bb2 {[%clk 0:01:43.3]} 28... Qh4 {[%clk 0:00:34.9]} 29. Rg2
{[%clk 0:01:28.1]} 29... Ng5 {[%clk 0:00:31.7]} 30. Nc6 {[%clk 0:01:15.1]} 30...
Ng6 {[%clk 0:00:16]} 31. Bxg7+ {[%clk 0:01:10.1]} 31... Kxg7 {[%clk 0:00:16.9]}
32. Ne4 {[%clk 0:01:08.5]} 32... Nxf3 {[%clk 0:00:16.4]} 33. Qc3+ {[%clk
0:01:08.4]} 33... Ne5 {[%clk 0:00:16.9]} 34. Nxe5 {[%clk 0:01:07.5]} 34... dxe5
{[%clk 0:00:17.8]} 35. Qxe5+ {[%clk 0:01:08.1]} 35... Kh6 {[%clk 0:00:16.4]} 36.
Qc3 {[%clk 0:00:57.4]} 36... Red8 {[%clk 0:00:15.2]} 37. Ng5 {[%clk 0:00:54.7]}
37... e5 {[%clk 0:00:13.1]} 38. Nf7+ {[%clk 0:00:53.4]} 38... Kg7 {[%clk
0:00:11.6]} 39. Nxd8 {[%clk 0:00:47.6]} 39... Rxd8 {[%clk 0:00:12.5]} 40. Qxe5+
{[%clk 0:00:47.8]} 40... Kh6 {[%clk 0:00:13.1]} 41. Qf5 {[%clk 0:00:42.5]} 41...
Rd2 {[%clk 0:00:11.4]} 42. Reg1 {[%clk 0:00:41.7]} 42... Qh5 {[%clk 0:00:08.1]}
43. Rxg6+ {[%clk 0:00:39.1]} 43... hxg6 {[%clk 0:00:07.7]} 44. Qxf4+ {[%clk
0:00:39.5]} 44... Kh7 {[%clk 0:00:07.2]} 45. Qxd2 {[%clk 0:00:39.7]} 45... Qf3+
{[%clk 0:00:07.7]} 46. Rg2 {[%clk 0:00:39.9]} 46... Qf5 {[%clk 0:00:07.2]} 47.
h3 {[%clk 0:00:38.1]} 47... Qe6 {[%clk 0:00:03.9]} 48. Rg4 {[%clk 0:00:35]}
48... Qf5 {[%clk 0:00:03.4]} 49. Kg2 {[%clk 0:00:33.6]} 1-0

[Event "Late-Titled-Tuesday-Blitz-April-02-2024"]
[Site "Chess.com"]
[Date "2024.04.02"]
[Round "10"]
[White "stasOR4ik"]
[Black "ninguno46"]
[Result "1-0"]
[WhiteElo "2460"]
[BlackElo "2579"]
[TimeControl "180+1"]
[EndTime "15:53:29 PDT"]
[Termination "stasOR4ik won on time"]

1. e4 {[%clk 0:02:57.7]} 1... c5 {[%clk 0:02:59.2]} 2. c3 {[%clk 0:02:57.9]}
2... d5 {[%clk 0:02:58.4]} 3. exd5 {[%clk 0:02:58.2]} 3... Qxd5 {[%clk
0:02:59.1]} 4. Nf3 {[%clk 0:02:58.9]} 4... g6 {[%clk 0:02:59.2]} 5. d4 {[%clk
0:02:59]} 5... Bg7 {[%clk 0:02:59.5]} 6. Be3 {[%clk 0:02:59.4]} 6... Nf6 {[%clk
0:02:51.4]} 7. Na3 {[%clk 0:02:58.9]} 7... cxd4 {[%clk 0:02:50.2]} 8. Nxd4
{[%clk 0:02:50.3]} 8... O-O {[%clk 0:02:46.5]} 9. Qb3 {[%clk 0:02:41]} 9... Qe4
{[%clk 0:02:25.6]} 10. Nab5 {[%clk 0:02:27.3]} 10... Na6 {[%clk 0:02:20.1]} 11.
Be2 {[%clk 0:02:10.4]} 11... Qxg2 {[%clk 0:02:16.5]} 12. Bf3 {[%clk 0:02:10.5]}
12... Qh3 {[%clk 0:02:16.1]} 13. Rg1 {[%clk 0:01:23.5]} 13... e5 {[%clk
0:01:59.3]} 14. Rg3 {[%clk 0:01:23.4]} 14... Qxh2 {[%clk 0:01:45.8]} 15. Ne2
{[%clk 0:01:21.5]} 15... e4 {[%clk 0:01:17.9]} 16. Bg2 {[%clk 0:01:21.7]} 16...
Nh5 {[%clk 0:01:09.7]} 17. Rg5 {[%clk 0:01:17.8]} 17... h6 {[%clk 0:01:00.7]}
18. Rxg6 {[%clk 0:01:15.1]} 18... Kh7 {[%clk 0:00:47]} 19. Rxg7+ {[%clk
0:00:52.1]} 19... Nxg7 {[%clk 0:00:46.3]} 20. Bxe4+ {[%clk 0:00:51.2]} 20... f5
{[%clk 0:00:42.4]} 21. Bf3 {[%clk 0:00:42.2]} 21... Qh3 {[%clk 0:00:16.1]} 22.
Qd5 {[%clk 0:00:34.8]} 22... Be6 {[%clk 0:00:11.7]} 23. Qxb7 {[%clk 0:00:34.7]}
23... Rab8 {[%clk 0:00:11.9]} 24. Qxa6 {[%clk 0:00:34.2]} 24... Qxf3 {[%clk
0:00:12.3]} 25. Nbd4 {[%clk 0:00:32]} 25... Qh1+ {[%clk 0:00:11.9]} 26. Kd2
{[%clk 0:00:30.9]} 26... Rxb2+ {[%clk 0:00:11]} 27. Nc2 {[%clk 0:00:27.7]} 27...
Qe4 {[%clk 0:00:09.2]} 28. Nd4 {[%clk 0:00:23.2]} 28... f4 {[%clk 0:00:08.8]}
29. Kc1 {[%clk 0:00:11.3]} 29... fxe3 {[%clk 0:00:07.7]} 30. Kxb2 {[%clk
0:00:11.8]} 30... exf2 {[%clk 0:00:07.5]} 31. Rf1 {[%clk 0:00:11.4]} 31... Rb8+
{[%clk 0:00:05.6]} 32. Ka1 {[%clk 0:00:11.8]} 32... Bh3 {[%clk 0:00:04.5]} 33.
Rxf2 {[%clk 0:00:11.4]} 33... Qh1+ {[%clk 0:00:05.1]} 34. Rf1 {[%clk 0:00:09.2]}
34... Bxf1 {[%clk 0:00:02.9]} 35. Qc6 {[%clk 0:00:08.7]} 35... Bg2+ {[%clk
0:00:02.3]} 36. Ne1 {[%clk 0:00:05.5]} 1-0

[Event "Late-Titled-Tuesday-Blitz-April-02-2024"]
[Site "Chess.com"]
[Date "2024.04.02"]
[Round "10"]
[White "BillCoe"]
[Black "chessydotcom"]
[Result "0-1"]
[WhiteElo "2132"]
[BlackElo "2303"]
[TimeControl "180+1"]
[EndTime "15:53:31 PDT"]
[Termination "chessydotcom won by resignation"]

1. e4 {[%clk 0:03:00.9]} 1... c5 {[%clk 0:02:59.7]} 2. Nf3 {[%clk 0:03:01]} 2...
e6 {[%clk 0:02:59.7]} 3. d4 {[%clk 0:03:00.7]} 3... cxd4 {[%clk 0:03:00.6]} 4.
Nxd4 {[%clk 0:03:01.4]} 4... Nf6 {[%clk 0:03:01]} 5. Bd3 {[%clk 0:03:01.6]} 5...
Nc6 {[%clk 0:03:00.8]} 6. Nb3 {[%clk 0:03:01.7]} 6... d5 {[%clk 0:02:59.7]} 7.
exd5 {[%clk 0:03:01.3]} 7... exd5 {[%clk 0:03:00.6]} 8. O-O {[%clk 0:03:00.8]}
8... Be7 {[%clk 0:02:59.8]} 9. Re1 {[%clk 0:03:00.5]} 9... O-O {[%clk
0:03:00.1]} 10. Nc3 {[%clk 0:03:00.2]} 10... Bg4 {[%clk 0:02:56.5]} 11. Be2
{[%clk 0:02:58.1]} 11... Bxe2 {[%clk 0:02:53]} 12. Qxe2 {[%clk 0:02:58.3]} 12...
Re8 {[%clk 0:02:51.3]} 13. Qd1 {[%clk 0:02:54.4]} 13... d4 {[%clk 0:02:46.5]}
14. Ne4 {[%clk 0:02:49.9]} 14... Nxe4 {[%clk 0:02:43.3]} 15. Rxe4 {[%clk
0:02:50.8]} 15... Bf6 {[%clk 0:02:43.8]} 16. Qe2 {[%clk 0:02:46.8]} 16... Qd7
{[%clk 0:02:42.5]} 17. Bf4 {[%clk 0:02:40.3]} 17... Rxe4 {[%clk 0:02:40.3]} 18.
Qxe4 {[%clk 0:02:41.2]} 18... Re8 {[%clk 0:02:40.2]} 19. Qd3 {[%clk 0:02:41.7]}
19... Nb4 {[%clk 0:02:34.7]} 20. Qd2 {[%clk 0:02:41.7]} 20... Nd5 {[%clk
0:02:29.2]} 21. Bg3 {[%clk 0:02:37.7]} 21... Qe6 {[%clk 0:02:23.6]} 22. h3
{[%clk 0:02:34.4]} 22... Qe2 {[%clk 0:02:06.1]} 23. Rd1 {[%clk 0:02:34.2]} 23...
Qxd2 {[%clk 0:01:46.6]} 24. Rxd2 {[%clk 0:02:35.1]} 24... Nb4 {[%clk 0:01:45.9]}
25. Nxd4 {[%clk 0:02:28]} 25... Rd8 {[%clk 0:01:39.6]} 26. c3 {[%clk 0:02:27.8]}
26... Nxa2 {[%clk 0:01:32.7]} 27. Bf4 {[%clk 0:02:03.7]} 27... Bxd4 {[%clk
0:01:25.1]} 28. cxd4 {[%clk 0:02:03.3]} 28... Nb4 {[%clk 0:01:23.5]} 29. Kf1
{[%clk 0:01:53.7]} 29... Kf8 {[%clk 0:01:16.8]} 30. Ke2 {[%clk 0:01:53.8]} 30...
Ke7 {[%clk 0:01:16.4]} 31. Be3 {[%clk 0:01:51.8]} 31... Ke6 {[%clk 0:01:14.2]}
32. Rd1 {[%clk 0:01:43.1]} 32... Rc8 {[%clk 0:01:11.2]} 33. Rc1 {[%clk
0:01:38.8]} 33... Rxc1 {[%clk 0:01:01.4]} 34. Bxc1 {[%clk 0:01:39.7]} 34... Kd5
{[%clk 0:01:02.2]} 35. Be3 {[%clk 0:01:37.6]} 35... Nc2 {[%clk 0:01:00.3]} 36.
Kd2 {[%clk 0:01:25.7]} 36... Nxd4 {[%clk 0:00:58.9]} 37. Kd3 {[%clk 0:01:25.2]}
37... Nc6 {[%clk 0:00:57.7]} 38. f4 {[%clk 0:01:22.9]} 38... f5 {[%clk
0:00:54.7]} 39. g4 {[%clk 0:01:22.4]} 39... g6 {[%clk 0:00:54.3]} 40. b3 {[%clk
0:01:19.6]} 40... b5 {[%clk 0:00:49.1]} 41. Bf2 {[%clk 0:01:13]} 41... a5 {[%clk
0:00:48.8]} 42. Be1 {[%clk 0:01:09.9]} 42... a4 {[%clk 0:00:49.1]} 43. bxa4
{[%clk 0:01:06.9]} 43... bxa4 {[%clk 0:00:50]} 44. Bc3 {[%clk 0:01:06.4]} 44...
a3 {[%clk 0:00:48.9]} 45. gxf5 {[%clk 0:01:02.9]} 45... gxf5 {[%clk 0:00:48.8]}
46. h4 {[%clk 0:01:03.3]} 46... h5 {[%clk 0:00:47.8]} 47. Bf6 {[%clk 0:00:58.3]}
47... a2 {[%clk 0:00:41.3]} 48. Ba1 {[%clk 0:00:56.5]} 48... Nb4+ {[%clk
0:00:31.1]} 49. Kc3 {[%clk 0:00:56.5]} 49... Nc6 {[%clk 0:00:31.3]} 50. Kd3
{[%clk 0:00:56.6]} 50... Na5 {[%clk 0:00:26.1]} 51. Kc3 {[%clk 0:00:50.5]} 51...
Ke4 {[%clk 0:00:25.4]} 52. Kb4 {[%clk 0:00:48.6]} 52... Nc6+ {[%clk 0:00:24.3]}
53. Kb3 {[%clk 0:00:43.6]} 53... Kxf4 {[%clk 0:00:24]} 54. Kxa2 {[%clk
0:00:43.8]} 54... Kg4 {[%clk 0:00:24.6]} 55. Bf6 {[%clk 0:00:43.1]} 55... f4
{[%clk 0:00:25.1]} 56. Kb3 {[%clk 0:00:43.7]} 56... f3 {[%clk 0:00:25.7]} 0-1

[Event "Late-Titled-Tuesday-Blitz-April-02-2024"]
[Site "Chess.com"]
[Date "2024.04.02"]
[Round "10"]
[White "azikom"]
[Black "ural58"]
[Result "1-0"]
[WhiteElo "2657"]
[BlackElo "2477"]
[TimeControl "180+1"]
[EndTime "15:53:37 PDT"]
[Termination "azikom won by resignation"]

1. d4 {[%clk 0:02:59]} 1... d5 {[%clk 0:02:15]} 2. Bf4 {[%clk 0:02:57.9]} 2...
Nf6 {[%clk 0:02:13.5]} 3. e3 {[%clk 0:02:58]} 3... c5 {[%clk 0:02:08.8]} 4. c3
{[%clk 0:02:56.8]} 4... Qb6 {[%clk 0:02:07.2]} 5. Qb3 {[%clk 0:02:54.8]} 5... c4
{[%clk 0:02:07.2]} 6. Qc2 {[%clk 0:02:55.1]} 6... g6 {[%clk 0:02:03.4]} 7. Nd2
{[%clk 0:02:55.3]} 7... Bf5 {[%clk 0:02:03]} 8. Qc1 {[%clk 0:02:54.9]} 8... Nc6
{[%clk 0:02:03]} 9. b3 {[%clk 0:02:54.5]} 9... cxb3 {[%clk 0:02:02.2]} 10. axb3
{[%clk 0:02:55.4]} 10... Bg7 {[%clk 0:02:01.4]} 11. Ngf3 {[%clk 0:02:54.9]}
11... O-O {[%clk 0:02:00.4]} 12. Be2 {[%clk 0:02:55.3]} 12... Nd7 {[%clk
0:01:59.3]} 13. O-O {[%clk 0:02:53.3]} 13... e5 {[%clk 0:01:59.2]} 14. Bg3
{[%clk 0:02:53.3]} 14... Rfe8 {[%clk 0:01:57]} 15. Re1 {[%clk 0:02:32]} 15... a6
{[%clk 0:01:52.1]} 16. h3 {[%clk 0:02:28.8]} 16... Rac8 {[%clk 0:01:40.9]} 17.
Qb2 {[%clk 0:02:23.7]} 17... h5 {[%clk 0:01:38.8]} 18. b4 {[%clk 0:02:10.2]}
18... Na7 {[%clk 0:01:18.9]} 19. Nb3 {[%clk 0:02:02.3]} 19... Be4 {[%clk
0:01:13.5]} 20. Nfd2 {[%clk 0:01:57.5]} 20... Bf5 {[%clk 0:00:56.2]} 21. Bf3
{[%clk 0:01:54.9]} 21... Be6 {[%clk 0:00:53.4]} 22. Reb1 {[%clk 0:01:50.9]}
22... Qb5 {[%clk 0:00:51.6]} 23. Nc5 {[%clk 0:01:32.3]} 23... e4 {[%clk
0:00:51.2]} 24. Bd1 {[%clk 0:01:28.5]} 24... Nxc5 {[%clk 0:00:43.6]} 25. bxc5
{[%clk 0:01:28.3]} 25... Qxb2 {[%clk 0:00:42.3]} 26. Rxb2 {[%clk 0:01:29.2]}
26... Re7 {[%clk 0:00:41.9]} 27. Ba4 {[%clk 0:01:25.3]} 27... f5 {[%clk
0:00:35.1]} 28. Bd6 {[%clk 0:01:24.1]} 28... Rf7 {[%clk 0:00:34.8]} 29. Rab1
{[%clk 0:01:21.6]} 29... Bd7 {[%clk 0:00:21.4]} 30. Bxd7 {[%clk 0:01:20.4]}
30... Rxd7 {[%clk 0:00:21.3]} 31. Rxb7 {[%clk 0:01:19.9]} 31... Rxb7 {[%clk
0:00:21.7]} 32. Rxb7 {[%clk 0:01:19.5]} 32... Nb5 {[%clk 0:00:22.3]} 33. c4
{[%clk 0:01:02.6]} 33... Nxd6 {[%clk 0:00:18]} 34. cxd6 {[%clk 0:01:02.5]} 34...
dxc4 {[%clk 0:00:18.9]} 35. d7 {[%clk 0:01:02.9]} 35... Rd8 {[%clk 0:00:19]} 36.
Nxc4 {[%clk 0:01:03.1]} 36... Bf6 {[%clk 0:00:19.2]} 37. Nb6 {[%clk 0:00:46]}
37... Kf7 {[%clk 0:00:18]} 38. Ra7 {[%clk 0:00:45.3]} 38... Rb8 {[%clk
0:00:15.4]} 39. Rxa6 {[%clk 0:00:41.9]} 39... Bd8 {[%clk 0:00:13.8]} 40. Nc4
{[%clk 0:00:40.5]} 40... Ke7 {[%clk 0:00:11.4]} 41. Ne5 {[%clk 0:00:37.6]} 41...
Rb1+ {[%clk 0:00:11.2]} 42. Kh2 {[%clk 0:00:37.3]} 42... Bc7 {[%clk 0:00:11.5]}
43. Rxg6 {[%clk 0:00:34.8]} 43... Bxe5+ {[%clk 0:00:10.6]} 44. dxe5 {[%clk
0:00:35.4]} 44... Kxd7 {[%clk 0:00:11.3]} 45. Rf6 {[%clk 0:00:34.5]} 45... Rf1
{[%clk 0:00:08.8]} 46. Rxf5 {[%clk 0:00:34.2]} 46... Ke6 {[%clk 0:00:09.5]} 47.
g4 {[%clk 0:00:31]} 47... hxg4 {[%clk 0:00:08.6]} 48. hxg4 {[%clk 0:00:31.9]}
1-0

[Event "Late-Titled-Tuesday-Blitz-April-02-2024"]
[Site "Chess.com"]
[Date "2024.04.02"]
[Round "10"]
[White "Mariia89"]
[Black "MasterSonnevanck23"]
[Result "0-1"]
[WhiteElo "2264"]
[BlackElo "2395"]
[TimeControl "180+1"]
[EndTime "15:53:44 PDT"]
[Termination "MasterSonnevanck23 won on time"]

1. d4 {[%clk 0:02:59.2]} 1... Nf6 {[%clk 0:02:59.1]} 2. Nf3 {[%clk 0:02:59.6]}
2... c5 {[%clk 0:02:58]} 3. d5 {[%clk 0:02:59.6]} 3... d6 {[%clk 0:02:58]} 4.
Nc3 {[%clk 0:03:00.1]} 4... Qa5 {[%clk 0:02:56.7]} 5. Bd2 {[%clk 0:02:42.7]}
5... b5 {[%clk 0:02:55.2]} 6. Ne4 {[%clk 0:02:32.5]} 6... Qa4 {[%clk 0:02:53.4]}
7. Nxf6+ {[%clk 0:02:31.9]} 7... gxf6 {[%clk 0:02:52.2]} 8. e3 {[%clk
0:02:17.2]} 8... a6 {[%clk 0:02:46.7]} 9. b3 {[%clk 0:02:05]} 9... Qe4 {[%clk
0:02:42.5]} 10. Bd3 {[%clk 0:02:04.7]} 10... Qxd5 {[%clk 0:02:38.4]} 11. e4
{[%clk 0:01:56.8]} 11... Qh5 {[%clk 0:02:35.6]} 12. c4 {[%clk 0:01:51.8]} 12...
bxc4 {[%clk 0:02:24.3]} 13. Bxc4 {[%clk 0:01:48.4]} 13... Bb7 {[%clk 0:02:23.9]}
14. Qe2 {[%clk 0:01:44.6]} 14... Nd7 {[%clk 0:02:11.9]} 15. h3 {[%clk
0:01:39.9]} 15... Ne5 {[%clk 0:02:07]} 16. Nxe5 {[%clk 0:01:38]} 16... Qxe2+
{[%clk 0:02:06.1]} 17. Kxe2 {[%clk 0:01:37.2]} 17... fxe5 {[%clk 0:02:04.6]} 18.
f3 {[%clk 0:01:33.9]} 18... h5 {[%clk 0:02:01.2]} 19. h4 {[%clk 0:01:32.5]}
19... Bh6 {[%clk 0:01:58.2]} 20. Bxh6 {[%clk 0:01:09.4]} 20... Rxh6 {[%clk
0:01:57.3]} 21. Ke3 {[%clk 0:01:03.3]} 21... e6 {[%clk 0:01:53.9]} 22. g4 {[%clk
0:01:01]} 22... d5 {[%clk 0:01:45.1]} 23. exd5 {[%clk 0:00:52.4]} 23... exd5
{[%clk 0:01:44.1]} 24. Bd3 {[%clk 0:00:47.4]} 24... d4+ {[%clk 0:01:35.4]} 25.
Kf2 {[%clk 0:00:44.5]} 25... hxg4 {[%clk 0:01:34.8]} 26. fxg4 {[%clk 0:00:42.9]}
26... Bxh1 {[%clk 0:01:27.9]} 27. Rxh1 {[%clk 0:00:43.8]} 27... Ke7 {[%clk
0:01:25.3]} 28. g5 {[%clk 0:00:42]} 28... Rh5 {[%clk 0:01:17.7]} 29. Be2 {[%clk
0:00:27.8]} 29... Rhh8 {[%clk 0:01:13.8]} 30. Bf3 {[%clk 0:00:19.9]} 30... Rac8
{[%clk 0:01:01.5]} 31. Bd5 {[%clk 0:00:13.6]} 31... Rcd8 {[%clk 0:00:58.1]} 32.
Bc4 {[%clk 0:00:12.8]} 32... e4 {[%clk 0:00:51.9]} 33. h5 {[%clk 0:00:12]} 33...
e3+ {[%clk 0:00:43.6]} 34. Kf3 {[%clk 0:00:10.6]} 34... Rdg8 {[%clk 0:00:42.8]}
35. Kf4 {[%clk 0:00:09.9]} 35... Rg7 {[%clk 0:00:39.2]} 36. Bd3 {[%clk
0:00:08.7]} 36... a5 {[%clk 0:00:37.1]} 37. h6 {[%clk 0:00:06.5]} 37... Rgg8
{[%clk 0:00:33.4]} 38. h7 {[%clk 0:00:05]} 38... Rg6 {[%clk 0:00:28.2]} 39. Rh6
{[%clk 0:00:01.3]} 39... Rxh6 {[%clk 0:00:24.2]} 40. gxh6 {[%clk 0:00:02.2]}
40... e2 {[%clk 0:00:22.9]} 41. Bxe2 {[%clk 0:00:01.2]} 41... Rxh7 {[%clk
0:00:22.8]} 42. Kg5 {[%clk 0:00:01.7]} 42... Rh8 {[%clk 0:00:20.4]} 43. Bd3
{[%clk 0:00:02]} 43... Ke6 {[%clk 0:00:17.2]} 0-1

[Event "Late-Titled-Tuesday-Blitz-April-02-2024"]
[Site "Chess.com"]
[Date "2024.04.02"]
[Round "10"]
[White "PotapovaM"]
[Black "arturdailima"]
[Result "1-0"]
[WhiteElo "2536"]
[BlackElo "2386"]
[TimeControl "180+1"]
[EndTime "15:53:56 PDT"]
[Termination "PotapovaM won on time"]

1. e4 {[%clk 0:02:51.1]} 1... Nf6 {[%clk 0:02:56.8]} 2. Nc3 {[%clk 0:02:49.3]}
2... e5 {[%clk 0:02:55.2]} 3. Nf3 {[%clk 0:02:48.8]} 3... Nc6 {[%clk 0:02:55.7]}
4. d4 {[%clk 0:02:49.6]} 4... exd4 {[%clk 0:02:55.4]} 5. Nxd4 {[%clk 0:02:50.5]}
5... Bb4 {[%clk 0:02:56.1]} 6. Nxc6 {[%clk 0:02:50.4]} 6... bxc6 {[%clk
0:02:57]} 7. Bd3 {[%clk 0:02:51]} 7... O-O {[%clk 0:02:56.7]} 8. O-O {[%clk
0:02:51.5]} 8... Re8 {[%clk 0:02:56.3]} 9. Bg5 {[%clk 0:02:50.5]} 9... d6 {[%clk
0:02:55.1]} 10. Qf3 {[%clk 0:02:51]} 10... h6 {[%clk 0:02:55.5]} 11. Bh4 {[%clk
0:02:51.7]} 11... Rb8 {[%clk 0:02:46.4]} 12. h3 {[%clk 0:02:45.3]} 12... g5
{[%clk 0:02:28.5]} 13. Bg3 {[%clk 0:02:42.1]} 13... Kg7 {[%clk 0:02:28.1]} 14.
Qe3 {[%clk 0:02:38.4]} 14... Bc5 {[%clk 0:02:25.8]} 15. Qd2 {[%clk 0:02:37.8]}
15... a5 {[%clk 0:02:21.4]} 16. Kh1 {[%clk 0:02:37.6]} 16... Nh5 {[%clk
0:02:16.9]} 17. Bh2 {[%clk 0:02:37.5]} 17... Bd4 {[%clk 0:01:47.3]} 18. Be2
{[%clk 0:02:34.1]} 18... Bxc3 {[%clk 0:01:38.3]} 19. Qxc3+ {[%clk 0:02:35]}
19... Nf6 {[%clk 0:01:38.3]} 20. f4 {[%clk 0:02:33.4]} 20... Kg8 {[%clk
0:01:35.3]} 21. fxg5 {[%clk 0:01:54.4]} 21... Nxe4 {[%clk 0:01:34.5]} 22. Qf3
{[%clk 0:01:42.4]} 22... Nxg5 {[%clk 0:01:34.4]} 23. Qh5 {[%clk 0:01:42.3]}
23... Qe7 {[%clk 0:01:24.4]} 24. Qxh6 {[%clk 0:01:36.2]} 24... Nh7 {[%clk
0:01:01.7]} 25. Bd3 {[%clk 0:01:29.8]} 25... f5 {[%clk 0:00:53.8]} 26. Rf3
{[%clk 0:00:44]} 26... Qf6 {[%clk 0:00:47.8]} 27. Rg3+ {[%clk 0:00:41.7]} 27...
Kh8 {[%clk 0:00:48.1]} 28. Rg6 {[%clk 0:00:41.9]} 28... Qxb2 {[%clk 0:00:45.2]}
29. Rf1 {[%clk 0:00:41.9]} 29... Rf8 {[%clk 0:00:35.3]} 30. Bg3 {[%clk
0:00:32.9]} 30... Bd7 {[%clk 0:00:21.5]} 31. Bh4 {[%clk 0:00:32.9]} 31... Rf7
{[%clk 0:00:16.1]} 32. Rf3 {[%clk 0:00:25.2]} 32... Qa1+ {[%clk 0:00:14.4]} 33.
Kh2 {[%clk 0:00:25.4]} 33... Qe5+ {[%clk 0:00:14.5]} 34. Bg3 {[%clk 0:00:25.5]}
34... Qa1 {[%clk 0:00:12.7]} 35. Bf4 {[%clk 0:00:25.5]} 35... Rg8 {[%clk
0:00:10.3]} 36. Rxg8+ {[%clk 0:00:24.6]} 36... Kxg8 {[%clk 0:00:11]} 37. Rg3+
{[%clk 0:00:25.3]} 37... Kh8 {[%clk 0:00:11.7]} 38. Bc4 {[%clk 0:00:25.2]} 38...
d5 {[%clk 0:00:11.3]} 39. Bd3 {[%clk 0:00:24.7]} 39... Qf6 {[%clk 0:00:11.9]}
40. Qh5 {[%clk 0:00:22.7]} 40... Rg7 {[%clk 0:00:06.9]} 41. Re3 {[%clk
0:00:20.7]} 41... Kg8 {[%clk 0:00:04]} 42. Be5 {[%clk 0:00:19.8]} 42... Qg6
{[%clk 0:00:04.1]} 43. Qe2 {[%clk 0:00:17.2]} 43... Re7 {[%clk 0:00:01.8]} 44.
Rg3 {[%clk 0:00:16.2]} 1-0

[Event "Late-Titled-Tuesday-Blitz-April-02-2024"]
[Site "Chess.com"]
[Date "2024.04.02"]
[Round "10"]
[White "Zhigalko_Sergei"]
[Black "IMRosen"]
[Result "1-0"]
[WhiteElo "2873"]
[BlackElo "2682"]
[TimeControl "180+1"]
[EndTime "15:53:58 PDT"]
[Termination "Zhigalko_Sergei won on time"]

1. e4 {[%clk 0:03:00.9]} 1... c5 {[%clk 0:02:59.2]} 2. Nf3 {[%clk 0:03:00]} 2...
e6 {[%clk 0:02:56.7]} 3. c3 {[%clk 0:02:59.8]} 3... d5 {[%clk 0:02:56.9]} 4. e5
{[%clk 0:02:56.9]} 4... d4 {[%clk 0:02:55.1]} 5. Bd3 {[%clk 0:02:56.9]} 5... Nc6
{[%clk 0:02:50.3]} 6. O-O {[%clk 0:02:56.5]} 6... g5 {[%clk 0:02:45]} 7. Be4
{[%clk 0:02:36.4]} 7... g4 {[%clk 0:02:45.1]} 8. Bxc6+ {[%clk 0:02:33.1]} 8...
bxc6 {[%clk 0:02:43.3]} 9. Ne1 {[%clk 0:02:34]} 9... h5 {[%clk 0:02:40.6]} 10.
Qa4 {[%clk 0:02:29.1]} 10... Qc7 {[%clk 0:02:24]} 11. Nd3 {[%clk 0:02:26.4]}
11... a5 {[%clk 0:02:05.9]} 12. Re1 {[%clk 0:02:14.3]} 12... Ba6 {[%clk
0:02:01.4]} 13. c4 {[%clk 0:02:14.5]} 13... Nh6 {[%clk 0:01:40.1]} 14. b3 {[%clk
0:02:01.5]} 14... Rb8 {[%clk 0:01:34.5]} 15. Ba3 {[%clk 0:01:34]} 15... Bb5
{[%clk 0:01:29.2]} 16. cxb5 {[%clk 0:00:39.6]} 16... cxb5 {[%clk 0:01:29.3]} 17.
Qxb5+ {[%clk 0:00:31.4]} 17... Rxb5 {[%clk 0:01:29.1]} 18. Rc1 {[%clk
0:00:32.3]} 18... Nf5 {[%clk 0:01:19]} 19. Bb2 {[%clk 0:00:32.6]} 19... a4
{[%clk 0:01:10.8]} 20. Na3 {[%clk 0:00:29.9]} 20... Rb8 {[%clk 0:01:11]} 21.
bxa4 {[%clk 0:00:30.4]} 21... Rxb2 {[%clk 0:00:41.5]} 22. Nxb2 {[%clk
0:00:30.3]} 22... Qxe5 {[%clk 0:00:42.2]} 23. Nbc4 {[%clk 0:00:28.8]} 23... Qd5
{[%clk 0:00:41.6]} 24. Rab1 {[%clk 0:00:28]} 24... Bd6 {[%clk 0:00:28.4]} 25.
Nb5 {[%clk 0:00:12.7]} 25... Bf4 {[%clk 0:00:18.1]} 26. g3 {[%clk 0:00:10.8]}
26... O-O {[%clk 0:00:18.3]} 27. Re1 {[%clk 0:00:06.3]} 27... h4 {[%clk
0:00:15.8]} 28. d3 {[%clk 0:00:04.3]} 28... Be3 {[%clk 0:00:05]} 29. fxe3 {[%clk
0:00:03.6]} 29... dxe3 {[%clk 0:00:05.7]} 30. Nxe3 {[%clk 0:00:03.5]} 30... Nxe3
{[%clk 0:00:04.6]} 31. Rxe3 {[%clk 0:00:04.4]} 31... h3 {[%clk 0:00:05.3]} 32.
Rb2 {[%clk 0:00:03.7]} 32... Ra8 {[%clk 0:00:03.1]} 33. Rd2 {[%clk 0:00:03.5]}
33... Rxa4 {[%clk 0:00:02.6]} 34. Nc3 {[%clk 0:00:01.9]} 34... Qd4 {[%clk
0:00:02.5]} 35. Nd1 {[%clk 0:00:02.6]} 35... Ra3 {[%clk 0:00:02.5]} 36. Kf1
{[%clk 0:00:02.2]} 36... Ra5 {[%clk 0:00:02.6]} 37. Re4 {[%clk 0:00:01.6]} 37...
Qf6+ {[%clk 0:00:02]} 38. Ke1 {[%clk 0:00:01.6]} 38... Qg5 {[%clk 0:00:02.4]}
39. Ne3 {[%clk 0:00:01.7]} 39... f5 {[%clk 0:00:02.4]} 40. Rxe6 {[%clk
0:00:02.3]} 40... Ra3 {[%clk 0:00:02.2]} 41. Rb2 {[%clk 0:00:02]} 41... Ra7
{[%clk 0:00:01.8]} 42. Rbb6 {[%clk 0:00:02]} 42... Kf7 {[%clk 0:00:01.8]} 43.
Ke2 {[%clk 0:00:01.6]} 43... Re7 {[%clk 0:00:02.1]} 44. Rxe7+ {[%clk 0:00:02.2]}
44... Kxe7 {[%clk 0:00:03]} 45. Nd5+ {[%clk 0:00:02]} 45... Kd8 {[%clk
0:00:02.8]} 46. Rd6+ {[%clk 0:00:02]} 46... Kc8 {[%clk 0:00:02.7]} 47. Rg6
{[%clk 0:00:01.6]} 47... Qh5 {[%clk 0:00:02.1]} 48. Rg7 {[%clk 0:00:01.2]} 48...
Qh6 {[%clk 0:00:01.9]} 49. Rf7 {[%clk 0:00:01.1]} 49... Qg6 {[%clk 0:00:01.3]}
50. Ne7+ {[%clk 0:00:01.5]} 1-0